bitfinex/quotes_BTCUSD_20230404
["timestamp","ask_amount","ask_price","bid_price","bid_amount"]
[1680625731963,0.73296156,28051.0,28048.0,0.24556497]
[1680625732189,0.0003,28051.0,28049.0,0.33232318]
[1680625732485,0.0003,28051.0,28050.0,0.009028]
[1680625732653,0.079201,28053.0,28049.0,0.36969921]
[1680625732877,0.079501,28053.0,28049.0,0.39423875]
[1680625733107,0.41711905,28053.0,28050.0,0.009489]
[1680625733335,0.41711905,28053.0,28049.0,0.41766673]
[1680625733564,0.41711905,28053.0,28050.0,0.008915]
[1680625733810,0.41711905,28053.0,28049.0,0.41766673]
[1680625734049,0.41711905,28053.0,28050.0,0.17624176]
[1680625736577,0.0025,28051.0,28050.0,0.80850979]
[1680625736792,0.0025,28051.0,28050.0,0.62485923]
[1680625737014,0.0025,28051.0,28050.0,0.53951568]
[1680625737232,0.0025,28051.0,28050.0,0.51851568]
[1680625737662,0.0025,28051.0,28050.0,0.53951568]
[1680625739297,0.0025,28051.0,28050.0,0.53007468]
[1680625739732,0.0025,28051.0,28050.0,0.53932468]
[1680625740861,0.0025,28051.0,28050.0,0.53007468]
[1680625742037,0.0025,28051.0,28050.0,0.53978968]
[1680625742257,0.03871182,28051.0,28050.0,0.53007468]
[1680625742474,0.0025,28051.0,28050.0,0.53940568]
[1680625742600,0.0025,28051.0,28050.0,0.53007468]
[1680625743055,0.0025,28051.0,28050.0,0.53944968]
[1680625743264,0.0025,28051.0,28050.0,0.4913163]
[1680625743489,0.0025,28051.0,28050.0,0.61933162]
[1680625743697,0.0025,28051.0,28050.0,1.02722078]
[1680625744550,0.0025,28051.0,28050.0,0.97404218]
[1680625744759,0.0025,28051.0,28050.0,1.32302387]
[1680625744985,0.0025,28051.0,28050.0,1.19500855]
[1680625745943,0.03756749,28051.0,28050.0,1.19500855]
[1680625746170,0.0025,28051.0,28050.0,1.19500855]
[1680625747068,0.0025,28051.0,28050.0,1.32302387]
[1680625747514,0.0025,28051.0,28050.0,1.19500855]
[1680625747806,0.0025,28051.0,28050.0,0.56371669]
[1680625748038,0.0025,28051.0,28050.0,0.63968524]
[1680625749158,0.0025,28051.0,28050.0,0.38328169]
[1680625749617,0.005351,28051.0,28050.0,0.38328169]
[1680625750313,0.0025,28051.0,28050.0,0.38328169]
[1680625750533,0.00239458,28051.0,28050.0,0.22177336]
[1680625751230,0.03797896,28051.0,28050.0,0.22177336]
[1680625751498,0.00239458,28051.0,28050.0,0.22177336]
[1680625751769,0.00524558,28051.0,28050.0,0.22177336]
[1680625751999,0.00239458,28051.0,28050.0,0.22177336]
[1680625753394,0.00239458,28051.0,28050.0,0.28241058]
[1680625753634,0.00239458,28051.0,28050.0,0.22177336]
[1680625753822,0.0380928,28051.0,28050.0,0.39943489]
[1680625754127,0.00239458,28051.0,28050.0,0.29350532]
[1680625754401,0.00239458,28051.0,28050.0,0.51634396]
[1680625754942,0.00239458,28051.0,28050.0,0.68734396]
[1680625755472,0.00239458,28051.0,28050.0,0.93542928]
[1680625755684,0.00239458,28051.0,28050.0,1.02050573]
[1680625757539,0.03837565,28051.0,28050.0,1.02056573]
[1680625757790,0.00239458,28051.0,28050.0,1.02056573]
[1680625758244,0.00239458,28051.0,28050.0,0.81927588]
[1680625758516,0.00239458,28051.0,28050.0,0.83353588]
[1680625758783,0.00239458,28051.0,28050.0,0.81927588]
[1680625759355,0.00239458,28051.0,28050.0,0.96579467]
[1680625759638,0.00439458,28051.0,28050.0,1.16310826]
[1680625760478,0.00439458,28051.0,28050.0,1.08750826]
[1680625760809,0.00439458,28051.0,28050.0,1.21553986]
[1680625761068,0.04020298,28051.0,28050.0,1.08750826]
[1680625761366,0.00439458,28051.0,28050.0,1.08750826]
[1680625761640,0.00439458,28051.0,28050.0,1.13018049]
[1680625762945,0.00439458,28051.0,28050.0,1.30084098]
[1680625764340,0.00439458,28051.0,28050.0,1.08747984]
[1680625765929,0.00439458,28051.0,28050.0,1.08753984]
[1680625766512,0.00439458,28051.0,28050.0,1.08747984]
[1680625766779,0.00439458,28051.0,28050.0,0.95522105]
[1680625769984,0.00439458,28051.0,28050.0,0.95516105]
[1680625770572,0.00439458,28051.0,28050.0,0.96942105]
[1680625770859,0.00430311,28051.0,28050.0,0.81942105]
[1680625771381,0.00430311,28051.0,28050.0,0.97537734]
[1680625772990,0.00430311,28051.0,28050.0,1.05167734]
[1680625774556,0.00430311,28051.0,28050.0,1.26503848]
[1680625774558,0.00430311,28051.0,28050.0,1.09437799]
[1680625774841,0.00430311,28051.0,28050.0,1.43906493]
[1680625775117,0.00430311,28051.0,28050.0,1.26069986]
[1680625775392,0.00430311,28051.0,28050.0,1.01843509]
[1680625775894,0.00430311,28051.0,28050.0,0.80507395]
[1680625776181,0.00430311,28051.0,28050.0,1.01843509]
[1680625776453,0.03963723,28051.0,28050.0,1.2109257]
[1680625776717,0.00430311,28051.0,28050.0,1.42428684]
[1680625777451,0.00430311,28051.0,28050.0,1.17153047]
[1680625778569,0.00430311,28051.0,28050.0,1.41922042]
[1680625778828,0.00430311,28051.0,28050.0,1.09529047]
[1680625779099,0.00430311,28051.0,28050.0,0.92471708]
[1680625779643,0.00430311,28051.0,28050.0,1.1398166]
[1680625780435,0.00430311,28051.0,28050.0,1.09525878]
[1680625780694,0.00430311,28051.0,28050.0,0.92465708]
[1680625781631,0.00430311,28051.0,28050.0,0.92471708]
[1680625781845,0.00430311,28051.0,28050.0,0.92465708]
[1680625782062,0.00430311,28051.0,28050.0,0.7715617]
[1680625782256,0.00430311,28051.0,28050.0,0.99373954]
[1680625782468,0.00430311,28051.0,28050.0,1.00799954]
[1680625782686,0.00430311,28051.0,28050.0,1.12472646]
[1680625782898,0.00430311,28051.0,28050.0,1.00799954]
[1680625783122,0.00430311,28051.0,28050.0,1.20484738]
[1680625783793,0.00430311,28051.0,28050.0,0.99373954]
[1680625784016,0.00430311,28051.0,28050.0,1.16434933]
[1680625784703,0.00430311,28051.0,28050.0,0.99373954]
[1680625786946,0.00430311,28051.0,28050.0,1.234291]
[1680625787169,0.00430311,28051.0,28050.0,0.99373954]
[1680625787436,0.00430311,28051.0,28050.0,1.11043856]
[1680625787662,0.00430311,28051.0,28050.0,1.32105766]
[1680625788319,0.00430311,28051.0,28050.0,1.11043856]
[1680625788539,0.00430311,28051.0,28050.0,1.32435087]
[1680625789057,0.00430311,28051.0,28050.0,1.11043856]
[1680625789512,0.00430311,28051.0,28050.0,1.32461713]
[1680625790892,0.00430311,28051.0,28050.0,1.11043856]
[1680625791855,0.00430311,28051.0,28050.0,1.31430211]
[1680625792521,0.00430311,28051.0,28050.0,1.11043856]
[1680625792735,0.00430311,28051.0,28050.0,1.11049856]
[1680625793163,0.00430311,28051.0,28050.0,1.37375554]
[1680625793389,0.00430311,28051.0,28050.0,1.32844111]
[1680625794036,0.00424276,28051.0,28050.0,1.32844111]
[1680625794258,0.00424276,28051.0,28050.0,1.11043856]
[1680625794801,0.00424276,28051.0,28050.0,1.11049856]
[1680625795014,0.00424276,28051.0,28050.0,1.11043856]
[1680625795232,0.00424276,28051.0,28050.0,1.31537724]
[1680625795455,0.00424276,28051.0,28050.0,1.11043856]
[1680625795673,0.00424276,28051.0,28050.0,1.32298269]
[1680625796724,0.00424276,28051.0,28050.0,1.34979064]
[1680625796936,0.00424276,28051.0,28050.0,0.78253595]
[1680625797398,0.00424276,28051.0,28050.0,0.54236686]
[1680625797841,0.00424276,28051.0,28050.0,0.74636084]
[1680625798058,0.00424276,28051.0,28050.0,0.91133742]
[1680625798273,0.00424276,28051.0,28050.0,1.07442156]
[1680625798501,0.00424276,28051.0,28050.0,1.45072156]
[1680625800468,0.00424276,28051.0,28050.0,1.37442156]
[1680625803427,0.00424276,28051.0,28050.0,1.63044558]
[1680625804774,0.00424276,28051.0,28050.0,1.37442156]
[1680625805234,0.00424276,28051.0,28050.0,1.63062823]
[1680625805471,0.00424276,28051.0,28050.0,1.37442156]
[1680625806164,0.00424276,28051.0,28050.0,1.61637319]
[1680625806381,0.00424276,28051.0,28050.0,1.63063319]
[1680625806824,0.00424276,28051.0,28050.0,1.67658001]
[1680625807261,0.00424276,28051.0,28050.0,1.67664001]
[1680625807697,0.00424276,28051.0,28050.0,1.45334905]
[1680625807964,0.00424276,28051.0,28050.0,1.34918848]
[1680625808183,0.00424276,28051.0,28050.0,1.34924848]
[1680625808398,0.00424276,28051.0,28050.0,1.11289849]
[1680625808624,0.00424276,28051.0,28050.0,1.11283849]
[1680625808842,0.00424276,28051.0,28050.0,1.37768314]
[1680625809724,0.00424276,28051.0,28050.0,1.11283849]
[1680625809945,0.00424276,28051.0,28050.0,1.33484015]
[1680625811247,0.00424276,28051.0,28050.0,1.11283849]
[1680625811566,0.00424276,28051.0,28050.0,1.68803671]
[1680625811797,0.00424276,28051.0,28050.0,1.46754905]
[1680625813039,0.00424276,28051.0,28050.0,1.67131896]
[1680625813480,0.00424276,28051.0,28050.0,1.21133742]
[1680625813706,0.00424276,28051.0,28050.0,1.21139742]
[1680625813935,0.00424276,28051.0,28050.0,1.21133742]
[1680625814178,0.00424276,28051.0,28050.0,1.43279891]
[1680625815999,0.00413081,28051.0,28050.0,1.43279891]
[1680625816438,0.00413081,28051.0,28050.0,1.68903183]
[1680625816659,0.00413081,28051.0,28050.0,1.93301083]
[1680625816892,0.00413081,28051.0,28050.0,1.68903183]
[1680625817634,0.00413081,28051.0,28050.0,1.89889044]
[1680625817853,0.00413081,28051.0,28050.0,1.68903183]
[1680625818070,0.00413081,28051.0,28050.0,1.89248632]
[1680625818522,0.00413081,28051.0,28050.0,1.68903183]
[1680625818744,0.00413081,28051.0,28050.0,1.89470147]
[1680625818970,0.00413081,28051.0,28050.0,1.67477183]
[1680625819192,0.00413081,28051.0,28050.0,1.43279891]
[1680625819363,0.00413081,28051.0,28050.0,1.68905418]
[1680625819583,0.00413081,28051.0,28050.0,1.43279891]
[1680625821391,0.00413081,28051.0,28050.0,1.70652038]
[1680625821609,0.00413081,28051.0,28050.0,1.96277364]
[1680625822274,0.00413081,28051.0,28050.0,1.43279891]
[1680625822495,0.00413081,28051.0,28050.0,1.68995146]
[1680625822716,0.00413081,28051.0,28050.0,1.94620267]
[1680625822927,0.00413081,28051.0,28050.0,1.94620211]
[1680625823150,0.00413081,28051.0,28050.0,1.94620277]
[1680625823354,0.00413081,28051.0,28050.0,1.68995146]
[1680625823609,0.00413081,28051.0,28050.0,1.43279891]
[1680625823854,0.00413081,28051.0,28050.0,1.91615151]
[1680625824742,0.00413081,28051.0,28050.0,1.33997946]
[1680625825615,0.00413081,28051.0,28050.0,0.85662686]
[1680625826752,0.00413081,28051.0,28050.0,1.10642897]
[1680625827236,0.00413081,28051.0,28050.0,0.85662686]
[1680625827453,0.00413081,28051.0,28050.0,1.1073239]
[1680625827674,0.00413081,28051.0,28050.0,1.31269004]
[1680625828120,0.00413081,28051.0,28050.0,1.56895017]
[1680625829037,0.00413081,28051.0,28050.0,1.31269004]
[1680625829262,0.00413081,28051.0,28050.0,1.41670356]
[1680625829491,0.00413081,28051.0,28050.0,1.49300356]
[1680625830382,0.00413081,28051.0,28050.0,1.41670356]
[1680625832019,0.00413081,28051.0,28050.0,1.4166423]
[1680625832246,0.00413081,28051.0,28050.0,1.41030356]
[1680625835700,0.00413081,28051.0,28050.0,1.42840356]
[1680625839389,0.00413081,28051.0,28050.0,1.22303742]
[1680625843603,0.00413081,28051.0,28050.0,1.20493742]
[1680625853776,0.00413081,28051.0,28050.0,1.58297288]
[1680625855176,0.0040291,28051.0,28050.0,1.58297288]
[1680625855424,0.0040291,28051.0,28050.0,1.20493742]
[1680625855955,0.0040291,28051.0,28050.0,1.58297288]
[1680625856798,0.0040291,28051.0,28050.0,1.28073742]
[1680625857084,0.02294,28062.0,28051.0,0.15]
[1680625857373,0.02288,28062.0,28061.0,0.08528536]
[1680625857667,0.02288,28062.0,28061.0,0.1240789]
[1680625857992,0.02288,28062.0,28061.0,0.2950189]
[1680625858218,0.02288,28062.0,28061.0,0.70781348]
[1680625858478,0.02288,28062.0,28061.0,0.45635665]
[1680625859127,0.02288,28062.0,28061.0,0.6844869]
[1680625859306,0.02288,28062.0,28061.0,0.55655886]
[1680625860596,0.02288,28062.0,28061.0,0.199]
[1680625861909,0.02288,28062.0,28061.0,0.37815865]
[1680625862949,0.02288,28062.0,28061.0,0.37821865]
[1680625863712,0.02288,28062.0,28061.0,0.37815865]
[1680625864008,0.02288,28062.0,28061.0,0.37821865]
[1680625864265,0.45931465,28062.0,28061.0,0.028]
[1680625864789,0.45952465,28062.0,28061.0,0.028]
[1680625866646,0.45952465,28062.0,28061.0,0.037145]
[1680625867147,0.45952465,28062.0,28061.0,0.028]
[1680625867975,0.45952465,28062.0,28061.0,0.037229]
[1680625868761,0.45952465,28062.0,28061.0,0.028]
[1680625868987,0.45952465,28062.0,28061.0,0.03711]
[1680625868988,0.02309,28062.0,28061.0,0.03711]
[1680625869222,0.02288,28062.0,28061.0,0.028]
[1680625869676,0.02288,28062.0,28061.0,0.036727]
[1680625870592,0.02288,28062.0,28061.0,0.028]
[1680625871282,0.02288,28062.0,28061.0,0.037034]
[1680625871740,0.02288,28062.0,28060.0,0.1104744]
[1680625872300,0.47382427,28062.0,28060.0,0.1104744]
[1680625872525,0.47403427,28062.0,28060.0,0.1104744]
[1680625872976,0.47403427,28062.0,28060.0,0.02971796]
[1680625873208,0.47403427,28062.0,28060.0,0.20071796]
[1680625873446,0.02509,28062.0,28060.0,0.04171796]
[1680625873672,0.02488,28062.0,28060.0,0.21271796]
[1680625874363,0.02488,28062.0,28060.0,0.04171796]
[1680625876935,0.95102413,28062.0,28060.0,0.012]
[1680625877193,1.190711,28061.0,28060.0,0.012]
[1680625877426,1.190921,28061.0,28060.0,0.012]
[1680625877909,1.243702,28061.0,28060.0,0.012]
[1680625878141,1.2857627,28061.0,28060.0,0.012]
[1680625878393,1.2329817,28061.0,28058.0,0.25628536]
[1680625878629,1.2329817,28061.0,28060.0,0.011]
[1680625878630,0.00121,28061.0,28060.0,0.011]
[1680625878859,0.00121,28061.0,28060.0,0.03446124]
[1680625878860,0.001,28061.0,28060.0,0.03446124]
[1680625879323,0.02309,28062.0,28060.0,0.02346124]
[1680625879558,0.002,28061.0,28060.0,0.02346124]
[1680625880053,0.43216557,28062.0,28060.0,0.02346124]
[1680625880289,0.43216557,28062.0,28060.0,0.03446124]
[1680625880290,0.001,28061.0,28060.0,0.03446124]
[1680625881212,0.40275556,28062.0,28060.0,0.02346124]
[1680625881409,0.40375556,28062.0,28060.0,0.03446124]
[1680625881666,0.40375556,28062.0,28060.0,0.011]
[1680625882129,0.40275556,28062.0,28059.0,0.19841108]
[1680625882389,0.40275556,28062.0,28059.0,0.02741108]
[1680625882617,0.001,28061.0,28060.0,0.011]
[1680625882841,0.40275556,28062.0,28059.0,0.02741108]
[1680625883070,0.40375556,28062.0,28060.0,0.011]
[1680625883770,0.40375556,28062.0,28060.0,0.03464503]
[1680625883992,0.40275556,28062.0,28060.0,0.02364503]
[1680625884221,0.40475556,28062.0,28060.0,0.02364503]
[1680625884447,0.40475556,28062.0,28059.0,0.09628536]
[1680625884677,0.34566864,28061.0,28058.0,0.28067254]
[1680625884954,0.34587864,28061.0,28058.0,0.28067254]
[1680625885180,0.34587864,28061.0,28059.0,0.0249948]
[1680625885413,0.00021,28061.0,28060.0,0.03073058]
[1680625885608,0.002,28062.0,28060.0,0.03073058]
[1680625885874,0.39720818,28063.0,28060.0,0.03073058]
[1680625886847,0.002,28061.0,28060.0,0.03073058]
[1680625887310,0.00021,28062.0,28060.0,0.03073058]
[1680625887573,0.00021,28062.0,28060.0,0.04173058]
[1680625887810,0.00021,28062.0,28060.0,0.03073058]
[1680625888039,0.001,28061.0,28060.0,0.04173058]
[1680625888265,0.00021,28062.0,28060.0,0.03073058]
[1680625888266,0.37027,28062.0,28060.0,0.03073058]
[1680625888490,0.37127,28062.0,28060.0,0.04173058]
[1680625889434,0.01809,28063.0,28061.0,0.05732027]
[1680625890355,0.001,28062.0,28061.0,0.05732027]
[1680625890601,0.01809,28063.0,28061.0,0.05732027]
[1680625891156,0.01909,28063.0,28061.0,0.22832027]
[1680625891429,0.001,28062.0,28061.0,0.33597963]
[1680625891656,0.001,28062.0,28061.0,0.33603963]
[1680625892350,0.01809,28063.0,28061.0,0.32803963]
[1680625892597,0.01909,28063.0,28061.0,0.33603963]
[1680625892828,0.01809,28063.0,28061.0,0.32803963]
[1680625893051,0.01809,28063.0,28061.0,0.33603963]
[1680625893247,0.001,28062.0,28061.0,0.33603963]
[1680625893480,0.01809,28063.0,28061.0,0.32803963]
[1680625893707,0.02009,28063.0,28061.0,0.33903963]
[1680625893933,0.01809,28063.0,28061.0,0.32803963]
[1680625894140,0.02009,28063.0,28061.0,0.36366575]
[1680625894607,0.02009,28063.0,28062.0,0.02654584]
[1680625895547,0.02009,28063.0,28062.0,0.09927098]
[1680625895747,0.02009,28063.0,28062.0,0.09939098]
[1680625895967,0.01809,28063.0,28062.0,0.09939098]
[1680625896192,0.01909,28063.0,28062.0,0.11039098]
[1680625896435,0.01909,28063.0,28062.0,0.11027098]
[1680625897313,0.01909,28063.0,28062.0,0.11039098]
[1680625897535,0.01909,28063.0,28062.0,0.19567634]
[1680625897816,0.01909,28063.0,28062.0,0.19573634]
[1680625898039,0.01909,28063.0,28062.0,0.03772584]
[1680625898260,0.01909,28063.0,28062.0,0.03754584]
[1680625898480,0.01909,28063.0,28062.0,0.1228312]
[1680625898723,0.00021,28067.0,28062.0,0.1228312]
[1680625898959,1.18176389,28067.0,28063.0,0.07452393]
[1680625899177,1.18197389,28067.0,28063.0,0.09906347]
[1680625899401,1.18197389,28067.0,28063.0,0.07452393]
[1680625899627,0.80687389,28067.0,28064.0,0.20306019]
[1680625899871,1.18197389,28067.0,28064.0,0.20306019]
[1680625900091,1.18297389,28067.0,28064.0,0.03212019]
[1680625900322,1.18197389,28067.0,28064.0,0.03212019]
[1680625901933,1.18197389,28067.0,28064.0,0.03312019]
[1680625902380,1.18197389,28067.0,28065.0,0.03933834]
[1680625902621,0.00021,28067.0,28065.0,0.03933834]
[1680625902841,0.02299,28068.0,28065.0,0.03933834]
[1680625902842,0.45576809,28068.0,28065.0,0.03933834]
[1680625904513,0.81047865,28068.0,28065.0,0.03879942]
[1680625904968,0.001,28067.0,28065.0,0.03979942]
[1680625905192,0.81026865,28068.0,28065.0,0.03879942]
[1680625905388,0.81526865,28068.0,28065.0,0.03879942]
[1680625906113,0.81526865,28068.0,28066.0,0.02751194]
[1680625907042,0.81026865,28068.0,28066.0,0.02751194]
[1680625907273,0.81026865,28068.0,28066.0,0.05711256]
[1680625907504,0.82226865,28068.0,28066.0,0.05711256]
[1680625907698,0.38970056,28068.0,28066.0,0.05711256]
[1680625911409,0.03499,28068.0,28066.0,0.05711256]
[1680625916221,0.014896,28068.0,28067.0,0.02854186]
[1680625917095,0.002896,28068.0,28067.0,0.02854186]
[1680625917766,0.002896,28068.0,28067.0,0.02954186]
[1680625920660,0.35833857,28068.0,28067.0,0.001]
[1680625921222,0.94028837,28068.0,28067.0,0.4142612]
[1680625921518,1.01516942,28068.0,28067.0,0.0257612]
[1680625922029,1.01495942,28068.0,28067.0,0.0257612]
[1680625922040,0.83681942,28068.0,28067.0,0.0257612]
[1680625922420,0.68681942,28068.0,28067.0,0.001]
[1680625922422,0.68681942,28068.0,28062.0,0.03443433]
[1680625922669,0.5251,28066.0,28063.0,0.03647242]
[1680625922906,0.5251,28066.0,28062.0,0.00012]
[1680625922907,0.84488802,28065.0,28062.0,0.00018]
[1680625923139,0.79274802,28065.0,28062.0,0.00018]
[1680625923388,0.79559802,28065.0,28062.0,0.00018]
[1680625924164,0.79559802,28065.0,28062.0,0.02972798]
[1680625924440,0.79274802,28065.0,28062.0,0.02972798]
[1680625924701,0.79559802,28065.0,28062.0,0.02972798]
[1680625925821,0.90188662,28065.0,28062.0,0.03072798]
[1680625926089,0.3506332,28064.0,28062.0,0.03072798]
[1680625926870,0.3506332,28064.0,28062.0,0.02972798]
[1680625927145,0.3506332,28064.0,28062.0,0.03072798]
[1680625928457,0.4842386,28065.0,28062.0,0.03072798]
[1680625928714,0.82700933,28065.0,28062.0,0.03072798]
[1680625929214,0.82700933,28065.0,28062.0,0.00118]
[1680625930804,0.34358608,28064.0,28063.0,0.23508]
[1680625931326,0.39754808,28064.0,28063.0,0.23508]
[1680625931581,0.39724708,28064.0,28063.0,0.23508]
[1680625931835,0.34358608,28064.0,28063.0,0.23508]
[1680625933137,0.34858608,28064.0,28063.0,0.23508]
[1680625933392,0.45309735,28064.0,28063.0,0.23508]
[1680625933666,0.47109735,28064.0,28063.0,0.23708]
[1680625934410,0.84904735,28064.0,28063.0,0.23708]
[1680625935440,0.89895235,28064.0,28063.0,0.23708]
[1680625935719,0.90241435,28064.0,28063.0,0.23708]
[1680625935991,1.11646232,28064.0,28063.0,0.25997181]
[1680625937270,1.16761332,28064.0,28063.0,0.25997181]
[1680625937725,1.11646232,28064.0,28063.0,0.25997181]
[1680625938647,1.16613932,28064.0,28063.0,0.25997181]
[1680625939385,1.11646232,28064.0,28063.0,0.25997181]
[1680625940083,1.11667232,28064.0,28063.0,0.09536832]
[1680625940279,1.16699632,28064.0,28063.0,0.09536832]
[1680625940987,1.11646232,28064.0,28063.0,0.09536832]
[1680625941229,1.00695105,28064.0,28063.0,0.09536832]
[1680625941481,1.01100866,28064.0,28063.0,0.09536832]
[1680625941913,1.05988166,28064.0,28063.0,0.09536832]
[1680625942145,0.72073797,28064.0,28063.0,0.09536832]
[1680625942394,0.72094797,28064.0,28063.0,0.02489181]
[1680625942630,0.79340287,28064.0,28063.0,0.02489181]
[1680625943051,0.79340287,28064.0,28063.0,0.002]
[1680625943532,0.79346287,28064.0,28063.0,0.002]
[1680625943765,0.79361287,28064.0,28063.0,0.002]
[1680625944919,0.79340287,28064.0,28063.0,0.002]
[1680625945367,1.14660762,28064.0,28063.0,0.002]
[1680625946045,0.79340287,28064.0,28063.0,0.002]
[1680625947388,0.77540287,28064.0,28058.0,0.03679691]
[1680625947627,0.3751,28062.0,28058.0,0.03679691]
[1680625947867,0.3751,28060.0,28058.0,0.03679691]
[1680625948094,0.3751,28060.0,28059.0,0.023123]
[1680625948095,0.278101,28060.0,28059.0,0.023123]
[1680625948324,0.286451,28060.0,28059.0,0.023123]
[1680625948764,0.286451,28060.0,28059.0,0.111323]
[1680625949243,0.27642295,28060.0,28059.0,0.14068965]
[1680625949464,0.00021,28061.0,28059.0,0.14068965]
[1680625949754,0.26785944,28061.0,28059.0,0.111323]
[1680625949995,0.26785944,28061.0,28059.0,0.13965958]
[1680625950218,0.01,28060.0,28059.0,0.13965958]
[1680625950448,0.64316944,28061.0,28060.0,0.0488]
[1680625950665,0.65316944,28061.0,28060.0,0.0488]
[1680625950892,1.09359748,28061.0,28060.0,0.0488]
[1680625951336,1.08359748,28061.0,28060.0,0.0488]
[1680625952001,0.64316944,28061.0,28060.0,0.07041646]
[1680625952256,0.64316944,28061.0,28060.0,0.0488]
[1680625953158,0.66016944,28061.0,28060.0,0.0488]
[1680625953608,0.76373703,28061.0,28060.0,0.0488]
[1680625953828,0.66016944,28061.0,28060.0,0.0488]
[1680626019058,1.00376471,28061.0,28060.0,0.02561354]
[1680626021452,1.05539471,28061.0,28060.0,0.02561354]
[1680626022243,1.00376471,28061.0,28060.0,0.02561354]
[1680626022475,1.11235228,28061.0,28060.0,0.02561354]
[1680626023137,1.16290128,28061.0,28060.0,0.02561354]
[1680626023705,1.11235228,28061.0,28060.0,0.02561354]
[1680626024499,1.16452528,28061.0,28060.0,0.02561354]
[1680626024738,1.05393771,28061.0,28060.0,0.02561354]
[1680626025262,1.00176471,28061.0,28060.0,0.02561354]
[1680626026413,1.05418271,28061.0,28060.0,0.02561354]
[1680626027234,1.00176471,28061.0,28060.0,0.02561354]
[1680626028262,1.05299371,28061.0,28060.0,0.02561354]
[1680626028525,1.05489671,28061.0,28060.0,0.02561354]
[1680626028785,1.11527518,28061.0,28060.0,0.02561354]
[1680626029803,1.16762518,28061.0,28060.0,0.02561354]
[1680626030549,1.19147518,28061.0,28060.0,0.02561354]
[1680626031020,1.24346418,28061.0,28060.0,0.01898245]
[1680626031250,1.24183618,28061.0,28057.0,0.09332477]
[1680626031508,0.3751,28059.0,28057.0,0.09326477]
[1680626031770,0.64398617,28058.0,28057.0,0.09332477]
[1680626032583,0.64398617,28058.0,28057.0,0.13772477]
[1680626033104,0.64398617,28058.0,28057.0,0.13872477]
[1680626033379,0.64398617,28058.0,28057.0,0.13772477]
[1680626033648,0.76487033,28058.0,28057.0,0.13872477]
[1680626034413,0.81984233,28058.0,28057.0,0.13872477]
[1680626034680,0.81950333,28058.0,28057.0,0.13090667]
[1680626035205,0.76487033,28058.0,28057.0,0.13090667]
[1680626036519,0.76487033,28058.0,28057.0,0.08650667]
[1680626037038,1.36895572,28058.0,28057.0,0.00112]
[1680626037317,1.38474313,28058.0,28057.0,0.001]
[1680626037591,1.35421933,28058.0,28057.0,0.001]
[1680626038107,1.4396625,28058.0,28057.0,0.001]
[1680626038128,2.72256776,28058.0,28057.0,0.001]
[1680626038384,0.3751,28056.0,28052.0,0.00018]
[1680626038660,0.3751,28052.0,28051.0,0.00018]
[1680626038929,0.69616002,28052.0,28051.0,0.00018]
[1680626039196,0.72259002,28052.0,28051.0,0.00018]
[1680626039662,0.96338032,28052.0,28051.0,0.00018]
[1680626039935,0.98638032,28052.0,28051.0,0.00018]
[1680626040204,0.96338032,28052.0,28051.0,0.00018]
[1680626040486,0.99038032,28052.0,28051.0,0.00018]
[1680626041017,0.99038032,28052.0,28051.0,0.01723013]
[1680626041296,1.41263549,28052.0,28051.0,0.01723013]
[1680626042386,0.99038032,28052.0,28051.0,0.01723013]
[1680626042652,0.72880902,28052.0,28051.0,0.01723013]
[1680626042956,0.73166002,28052.0,28051.0,0.01723013]
[1680626043729,0.027,28052.0,28051.0,0.18735746]
[1680626045046,0.003,28052.0,28051.0,0.19035746]
[1680626045310,0.43203082,28055.0,28051.0,0.18735746]
[1680626045584,0.08099818,28054.0,28051.0,0.19035746]
[1680626046443,0.81225295,28056.0,28052.0,0.0076843]
[1680626046705,1.07879629,28056.0,28052.0,0.0076843]
[1680626047546,0.43685162,28055.0,28052.0,0.0076843]
[1680626047791,0.43970262,28055.0,28052.0,0.0076843]
[1680626048818,0.82612007,28054.0,28051.0,0.00318]
[1680626049066,0.002851,28053.0,28051.0,0.00018]
[1680626049843,0.26964848,28053.0,28051.0,0.00018]
[1680626050093,0.053371,28052.0,28051.0,0.00018]
[1680626050349,0.14169803,28052.0,28051.0,0.00018]
[1680626051367,0.13884703,28052.0,28051.0,0.00018]
[1680626051634,0.15869803,28052.0,28051.0,0.00018]
[1680626052660,1.25194871,28052.0,28051.0,0.00018]
[1680626053482,0.93578305,28052.0,28051.0,0.00018]
[1680626053765,1.23578305,28052.0,28051.0,0.00018]
[1680626054217,1.37767986,28052.0,28050.0,7.84e-06]
[1680626054220,1.41382054,28052.0,28050.0,7.84e-06]
[1680626054494,1.54321003,28051.0,28050.0,7.84e-06]
[1680626054771,1.56317103,28051.0,28050.0,7.84e-06]
[1680626055057,1.56338103,28051.0,28050.0,7.84e-06]
[1680626055511,1.58122991,28051.0,28050.0,7.84e-06]
[1680626055965,1.60822991,28051.0,28050.0,7.84e-06]
[1680626057612,1.59038103,28051.0,28050.0,7.84e-06]
[1680626058808,1.56338103,28051.0,28050.0,7.84e-06]
[1680626059037,1.59038103,28051.0,28050.0,7.84e-06]
[1680626059509,1.56338103,28051.0,28050.0,7.84e-06]
[1680626060246,1.58122991,28051.0,28050.0,7.84e-06]
[1680626060710,1.60822991,28051.0,28050.0,7.84e-06]
[1680626060927,1.77934991,28051.0,28050.0,7.84e-06]
[1680626064128,1.76150103,28051.0,28050.0,7.84e-06]
[1680626068391,1.93979103,28051.0,28050.0,7.84e-06]
[1680626071085,1.93989103,28051.0,28050.0,7.84e-06]
[1680626076111,1.94239103,28051.0,28050.0,7.84e-06]
[1680626076371,0.15010751,28050.0,28048.0,0.0208]
[1680626076600,0.99684461,28049.0,28048.0,0.0208]
[1680626077296,1.75787099,28049.0,28048.0,0.0208]
[1680626077534,1.7847582,28049.0,28048.0,0.0208]
[1680626078210,1.9630482,28049.0,28048.0,0.0208]
[1680626079344,1.57552935,28049.0,28048.0,0.0208]
[1680626079576,1.11450297,28049.0,28048.0,0.0208]
[1680626079819,0.72184697,28049.0,28048.0,0.0547606]
[1680626080077,0.72184697,28049.0,28048.0,0.03034106]
[1680626080078,0.72099497,28049.0,28048.0,0.03034106]
[1680626080308,0.71978097,28049.0,28048.0,0.03022106]
[1680626080534,0.71978097,28049.0,28048.0,0.10652106]
[1680626080765,0.69278097,28049.0,28048.0,0.10670106]
[1680626082223,0.69278097,28049.0,28048.0,0.03040106]
[1680626082446,0.71978097,28049.0,28048.0,0.03140106]
[1680626082681,0.69278097,28049.0,28048.0,0.03040106]
[1680626082902,0.71678097,28049.0,28048.0,0.03140106]
[1680626083371,0.69278097,28049.0,28048.0,0.03040106]
[1680626084085,0.71678097,28049.0,28048.0,0.03140106]
[1680626084309,0.69278097,28049.0,28048.0,0.03040106]
[1680626085464,0.69278097,28049.0,28044.0,0.09223965]